[Event "ChessKid Cup Div-III 2023"]
[Site "Online"]
[Date "2023.05.23"]
[Round "52.3"]
[White "Gledura, Benjamin"]
[Black "Santos Ruiz, Miguel"]
[Result "0-1"]
[ECO "D33"]
[WhiteElo "2644"]
[BlackElo "2590"]
[Annotator "TA"]
[PlyCount "84"]
[EventDate "2023.05.21"]
[EventType "k.o."]
[EventCountry "NET"]
[SourceTitle "playchess.com"]
[Source "ChessBase"]
[SourceQuality "1"]
[TimeControl "900+3"]

{[%evp 21,84,43,43,43,60,55,69,66,92,57,112,106,211,222,218,213,208,204,273,145,259,144,134,135,143,157,140,106,318,313,344,347,367,241,235,225,225,202,185,209,243,182,189,102,106,30,192,194,243,287,275,274,356,187,480,358,419,-488,-472,-565,-570,-671,-592,-29990,-29991]} 1. c4 {[%emt 0:00:09]} e6 {[%emt 0:05:41]} 2. g3 {[%emt 0:00:04]} d5 {[%emt 0:00:03]} 3. Bg2 {[%emt 0:00:04]} Nf6 {[%emt 0:00:13]} 4. Nf3 {[%emt 0:00:06]} Be7 {[%emt 0:00:06]} 5. b3 {[%emt 0:00:05]} O-O {[%emt 0:00:09]} 6. Bb2 {[%emt 0:00:05]} c5 {[%emt 0:00:09]} 7. cxd5 {[%emt 0:00:05]} exd5 {[%emt 0:00:04]} 8. d4 {[%emt 0:00:08]} Nc6 {[%emt 0:00:04]} 9. O-O {[%emt 0:00:06]} Be6 {[%emt 0:00:05]} 10. Nc3 {[%emt 0:00:34]} h6 {[%emt 0:00:09]} 11. dxc5 {[%emt 0:00:28]} Bxc5 {[%emt 0:00:04]} 12. Rc1 {[%emt 0:00:05] D33: Tarrasch Defence: 6 g3 sidelines.} Be7 {[%emt 0:00:10]} 13. e3 {[%emt 0:00:21]} Rc8 {[%emt 0:00:04] [#]} 14. Ne2 $146 {[%emt 0:00:12] White is slightly better.} ({Predecessor:} 14. Qd3 Qd7 15. Rfd1 Rfd8 16. Qf1 Qc7 17. h3 Qb8 18. Ne2 Ne4 19. Nf4 Bf6 20. Bxf6 Nxf6 {1-0 Vavra,P (2155)-Ruzicka,R (1706) Tabor op 2007 (1)}) 14... Qa5 {[%emt 0:00:07]} 15. a3 {[%emt 0:00:04]} Qb6 {[%emt 0:00:05]} (15... Bxa3 $2 16. Ra1 $18) (15... Ne4 $14) 16. Nf4 $16 {[%emt 0:00:13]} Rfd8 {[%emt 0:00:34]} (16... Qd8 $16) 17. Nxe6 $18 {[%emt 0:00:13]} fxe6 {[%emt 0:00:03] [#]} 18. Bh3 $1 {[%emt 0:00:05]} Kf7 {[%emt 0:00:19]} 19. b4 {[%emt 0:00:34]} a5 {[%emt 0:00:10]} 20. Bd4 {[%emt 0:02:02]} (20. Nh4 $18) 20... Qb5 {[%emt 0:00:05]} (20... Nxd4 $16 21. Qxd4 Qa6) 21. a4 {[%emt 0:00:12]} (21. bxa5 $18 {Threatens to win with Bb6.} Qxa5 22. Rxc6 {[%mdl 64] Remove Defender, Decoy} Rxc6 23. Ne5+ Kg8 24. Nxc6 bxc6 25. Bxe6+ Kh8 26. Qc2) 21... Qxb4 $16 {[%emt 0:00:04]} 22. Rb1 {[%emt 0:00:03][%cal Bc1b1,Bb1b7,Bb7b5][%mdl 32]} Qd6 {[%emt 0:00:04]} 23. Rxb7 {[%emt 0:00:06]} Rb8 {[%emt 0:00:03]} 24. Rb5 {[%emt 0:00:27]} e5 $2 {[%emt 0:00:20]} (24... Ne4 $16) 25. Bb6 $18 {[%emt 0:00:14]} Re8 {[%emt 0:00:10]} 26. e4 {[%emt 0:00:44][%cal Be3e4,Be4d5][%mdl 32]} (26. Bxa5 $2 Rxb5 $19) 26... Nb4 {[%emt 0:00:42]} 27. Bc5 {[%emt 0:00:11] This pair of bishops is nice.} (27. Bxa5 Rxb5 28. axb5 dxe4 $18) 27... Qc7 {[%emt 0:00:09]} 28. Bxb4 {[%emt 0:00:11]} Bxb4 {[%emt 0:00:06]} 29. Rxb8 {[%emt 0:00:09]} Rxb8 {[%emt 0:00:26]} 30. exd5 {[%emt 0:00:04]} g6 {[%emt 0:00:43]} 31. Be6+ {[%emt 0:00:08]} Kg7 {[%emt 0:00:04]} 32. Qe2 {[%emt 0:00:44]} (32. Qa1 $18 {Hoping for Rc1.} Ne4 33. Rc1 (33. Qxe5+ Qxe5 34. Nxe5 Nc5 $16) (33. Nxe5 $2 Bc3 $19)) 32... Bd6 $16 {[%emt 0:00:26] [#]} 33. Re1 {[%emt 0:00:06]} (33. Qe3 $1 $16) 33... e4 $2 {[%emt 0:00:11]} (33... Rb4 $11 {and Black is okay.}) 34. Nd4 $18 {[%emt 0:00:04]} Bc5 {[%emt 0:00:12]} (34... Qc5 {keeps fighting.}) 35. Rc1 {[%emt 0:00:11]} Qb6 {[%emt 0:00:09]} 36. Nb5 {[%emt 0:00:48]} Rd8 {[%emt 0:00:54]} 37. Qc2 {[%emt 0:00:10]} (37. Qb2 $142) 37... Bb4 $2 {[%emt 0:00:06]} (37... Nxd5 38. Qxc5 (38. Qxe4 Bxf2+ 39. Kg2 Nf6 $11) 38... Qxe6) 38. Qb3 {[%emt 0:00:36]} e3 {[%emt 0:00:09]} 39. Rc7+ $4 {[%emt 0:00:29][%mdl 8192] [#]} ({Much less strong is} 39. fxe3 Bd2 40. Rc7+ Kh8 $18) ({Weaker is} 39. Qxe3 Qxe3 40. fxe3 Ne4 41. Rc7+ Kh8 $18) (39. Kf1 $18 {and life is good for White.} Rf8 40. f4 (40. fxe3 $2 {loses.} Nxd5+ {[%mdl 64] Discovered Attack} 41. Kg1 Nxe3 $19) (40. Qxe3 Qxe3 41. fxe3 Nxd5+ 42. Ke2 Ne7 $16)) 39... Qxc7 $19 {[%emt 0:00:04][%mdl 576] Promotion} 40. Qxe3 {[%emt 0:00:27]} (40. Nxc7 e2) 40... Qc2 {[%emt 0:00:08] Strongly threatening ...Bc5.} 41. Qa7+ {[%emt 0:00:18]} Kh8 {[%emt 0:00:17] ( -> ...Bc5)} 42. h4 {[%emt 0:00:17]} Bc5 {[%emt 0:00:06] Dodges Nd4. Black used his chance. An entertaining game by Santos Ruiz.   Weighted Error Value: White=0.72/Black=0.53} 0-1

[Event "ChessKid Cup Div-III 2023"]
[Site "Online"]
[Date "2023.05.23"]
[Round "52.3"]
[White "Terry, Renato"]
[Black "Kamsky, Gata"]
[Result "1/2-1/2"]
[ECO "A48"]
[WhiteElo "2520"]
[BlackElo "2665"]
[Annotator "TA"]
[PlyCount "112"]
[EventDate "2023.05.21"]
[EventType "k.o."]
[EventCountry "NET"]
[SourceTitle "playchess.com"]
[Source "ChessBase"]
[SourceQuality "1"]
[TimeControl "900+3"]

{[%evp 18,112,-2,0,13,14,6,14,15,15,16,5,31,11,18,10,29,17,23,17,16,27,32,20,45,19,26,0,-7,-29,-19,-11,-14,-86,-102,-155,-43,-146,-132,-132,-62,-81,-59,-60,-55,-151,-139,-136,0,0,0,0,0,0,0,0,0,0,0,0,15,0,0,0,0,0,0,0,0,0,0,0,0,0,0,0,0,0,0,0,0,0,0,0,0,0,0,0,0,0,0,0,0,0,0,0,0]} 1. Nf3 {[%emt 0:00:23]} Nf6 {[%emt 0:04:11]} 2. d4 {[%emt 0:00:12]} g6 {[%emt 0:00:10]} 3. Bg5 {[%emt 0:00:05]} Bg7 {[%emt 0:00:05]} 4. c3 {[%emt 0:00:04]} d6 {[%emt 0:00:11]} 5. Nbd2 {[%emt 0:00:04]} O-O {[%emt 0:00:06]} 6. e4 {[%emt 0:00:08]} c5 {[%emt 0:00:08]} 7. dxc5 {[%emt 0:00:04]} dxc5 {[%emt 0:00:04]} 8. Bc4 {[%emt 0:00:04]} Nc6 {[%emt 0:00:06]} 9. Qe2 {[%emt 0:00:07]} Qc7 {[%emt 0:00:07]} 10. O-O {[%emt 0:00:06]} h6 {[%emt 0:00:11] A48: 1 d4 Nf6 2 Nf3 g6: Torre, London and Colle Systems.} 11. Bxf6 {[%emt 0:00:05]} exf6 {[%emt 0:00:09]} 12. Nh4 {[%emt 0:00:17]} Kh8 {[%emt 0:01:56]} 13. f4 {[%emt 0:00:22] [#]} Bd7 $146 {[%emt 0:00:15]} ({Predecessor:} 13... b6 14. Rad1 Bb7 15. f5 g5 16. Nhf3 Rad8 17. h3 Rfe8 18. Ba6 Bxa6 19. Qxa6 Bf8 {½-½ Arcenegui Rodrigo,J-Tarrio Ocana,F (2278) ESP AEAC W/M/017 email 2007}) 14. Rad1 {[%emt 0:01:33]} Rae8 {[%emt 0:00:09]} 15. Qf2 {[%emt 0:00:27]} Ne7 {[%emt 0:00:50]} 16. f5 {[%emt 0:00:30]} b5 {[%emt 0:00:14]} 17. Bd3 {[%emt 0:00:14]} c4 {[%emt 0:00:23]} 18. Bc2 {[%emt 0:00:05]} g5 {[%emt 0:00:25]} 19. Nhf3 {[%emt 0:00:04]} Nc6 {[%emt 0:00:04]} 20. Rfe1 {[%emt 0:00:32]} Rg8 {[%emt 0:00:06]} 21. Nf1 {[%emt 0:00:06]} (21. a4 $5 {[%cal Ra4b5]}) 21... Bf8 {[%emt 0:00:08]} 22. Ng3 {[%emt 0:00:22]} Ne5 {[%emt 0:00:06]} 23. Kh1 {[%emt 0:00:52]} Bc5 {[%emt 0:00:14]} 24. Qe2 {[%emt 0:00:14]} Nxf3 {[%emt 0:00:54]} 25. Qxf3 {[%emt 0:00:04]} (25. gxf3 $11 Bc6 26. b3) 25... g4 $17 {[%emt 0:00:05]} 26. Qe2 {[%emt 0:00:21]} ({White should try} 26. Qf1) 26... Bc6 {[%emt 0:00:08]} (26... Rg5 $1 $17 {[%cal Oc7g3] And now ...Qxg3! would win.} 27. e5 Rxe5) 27. b3 {[%emt 0:01:23]} (27. Qd2 $15 Rg5 28. e5) 27... Rg5 $1 {[%emt 0:00:24][%cal Oc7g3] ( -> ...Qxg3!). White is weak on the dark squares} 28. Nf1 {[%emt 0:00:32]} (28. bxc4 $2 Qxg3 29. Qd3 Qxd3 30. Bxd3 bxc4 31. Bxc4 Rxe4 32. Rxe4 Bxe4 $19) 28... h5 {[%emt 0:00:07]} (28... Qe5 $1 $17 29. a4 (29. bxc4 b4 $17) 29... Qxc3 30. axb5 Bxb5 31. bxc4 Bc6) 29. bxc4 $15 {[%emt 0:00:20] [#]} b4 {[%emt 0:00:33]} 30. Qd2 {[%emt 0:00:26]} a5 {[%emt 0:00:14]} (30... bxc3 {simplifies} 31. Qxc3 Kg7 32. e5 Rxe5 33. Rxe5 Qxe5 34. Qxe5 fxe5 35. Ng3 Ba3) 31. Ne3 {[%emt 0:00:13] [#]} (31. cxb4 $15 Bxb4 32. Qd4) 31... Qe5 $1 $17 {[%emt 0:00:15]} 32. Nd5 {[%emt 0:00:47][%cal Rc3b4]} (32. cxb4 Bxb4 33. Qc1 Bxe1 34. Rxe1 Bxe4 35. Bxe4 Qxe4 $19) 32... h4 {[%emt 0:00:09]} (32... bxc3 $17 33. Qf4 (33. Qxc3 Qxc3 34. Nxc3 Bb4 $17) (33. Nxc3 Bb4 $17) 33... Qxf4 34. Nxf4 Rb8) 33. cxb4 $11 {[%emt 0:00:28] The position is equal.} Bd6 {[%emt 0:00:05][%csl Gd6][%cal Re5h2]} 34. Nf4 $1 {[%emt 0:01:20]} Bxb4 {[%emt 0:00:07] This pair of bishops is nice.} 35. Nd3 $1 {[%emt 0:00:05][%csl LRb4,LRe5][%mdl 64] Double Attack} Bxd2 {[%emt 0:00:13]} 36. Nxe5 {[%emt 0:00:04]} Rxe5 {[%emt 0:00:11]} ({Much less strong is} 36... Bxe1 37. Nxf7+ (37. Nxc6 Bb4 $17) 37... Kg8 38. Nxg5 $14) 37. Rxd2 {[%emt 0:00:04]} Rgxf5 {[%emt 0:00:04][%cal Oc6e4][%mdl 64] Pin} 38. Kg1 {[%emt 0:00:19]} Rf4 {[%emt 0:00:17]} 39. Re3 {[%emt 0:01:17]} Kg7 {[%emt 0:00:24]} 40. g3 {[%emt 0:00:42]} hxg3 {[%emt 0:00:06]} 41. hxg3 {[%emt 0:00:03]} Rf3 {[%emt 0:00:15]} 42. Rxf3 {[%emt 0:00:04]} gxf3 {[%emt 0:00:04]} 43. Kf2 {[%emt 0:00:04]} Bxe4 {[%emt 0:00:14]} 44. Bxe4 {[%emt 0:00:04]} Rxe4 {[%emt 0:00:04][%mdl 4096] Endgame KR-KR} 45. Rc2 {[%emt 0:00:03]} ({But not} 45. Kxf3 Rxc4 46. Rd3 Ra4 $17) 45... Kf8 {[%emt 0:00:10]} 46. Kxf3 {[%emt 0:00:07]} Rd4 {[%emt 0:00:18]} 47. c5 {[%emt 0:00:38][%cal Bc4c5,Bc5c6,Bc6c7][%mdl 32]} Ke7 {[%emt 0:00:04]} 48. c6 {[%emt 0:00:04] Threatens to win with c7.} Kd8 {[%emt 0:00:05]} 49. Ke3 {[%emt 0:00:04]} Rg4 {[%emt 0:00:05]} 50. Kf3 {[%emt 0:00:04]} Ra4 {[%emt 0:00:04]} 51. c7+ {[%emt 0:00:06]} Kc8 {[%emt 0:00:04]} 52. g4 {[%emt 0:00:04]} Rb4 {[%emt 0:00:07]} 53. Kg3 {[%emt 0:00:04]} a4 {[%emt 0:00:05]} 54. Rc6 {[%emt 0:00:10]} Rb2 {[%emt 0:00:04]} 55. Rxf6 {[%emt 0:00:04]} Rxa2 {[%emt 0:00:06]} 56. Rxf7 {[%emt 0:00:04] Strongly threatening g5.} a3 {[%emt 0:00:04] An interesting game.   Weighted Error Value: White=0.14 (very precise) /Black=0.14 (very precise)} 1/2-1/2

[Event "ChessKid Cup Div-III 2023"]
[Site "Online"]
[Date "2023.05.23"]
[Round "53.1"]
[White "Bluebaum, Matthias"]
[Black "Yu, Yangyi"]
[Result "1/2-1/2"]
[ECO "E51"]
[WhiteElo "2669"]
[BlackElo "2729"]
[Annotator "TA"]
[PlyCount "53"]
[EventDate "2023.05.21"]
[EventType "k.o."]
[EventCountry "NET"]
[SourceTitle "playchess.com"]
[Source "ChessBase"]
[SourceQuality "1"]
[TimeControl "900+3"]

{[%evp 11,53,-14,0,0,5,0,15,20,39,0,0,0,0,0,0,0,0,0,0,0,0,0,0,-11,-14,-14,-12,-12,-4,-6,0,0,0,0,14,14,35,39,43,0,29,0,38,0]} 1. d4 {[%emt 0:00:03]} Nf6 {[%emt 0:00:10]} 2. c4 {[%emt 0:00:01]} e6 {[%emt 0:00:01]} 3. Nc3 {[%emt 0:00:01]} Bb4 {[%emt 0:00:11]} 4. e3 {[%emt 0:00:01]} O-O {[%emt 0:00:07]} 5. Bd2 {[%emt 0:00:01]} d5 {[%emt 0:00:33]} 6. Nf3 {[%emt 0:00:01]} Nbd7 {[%emt 0:00:05]} 7. Rc1 {[%emt 0:00:04] 7.a3 is setting a new trend. E51: Nimzo-Indian: Rubinstein: 4...0-0 5 Nf3 d5.} c6 {[%emt 0:00:17]} 8. Bd3 {[%emt 0:00:03]} Re8 {[%emt 0:00:19]} 9. O-O {[%emt 0:00:03] The position is equal.} h6 {[%emt 0:00:02] [#]} 10. a3 $146 {[%emt 0:00:05]} (10. Nxd5 $5 Nxd5 11. cxd5 Bxd2 12. Qxd2 $14 (12. Nxd2 exd5 13. h3 Nf6 $11)) ({Predecessor:} 10. Re1 dxc4 11. Bxc4 b5 12. Bd3 Bb7 13. a3 Bd6 14. b4 a5 15. Ne4 Nxe4 16. Bxe4 axb4 17. axb4 {1-0 Zakhartsov,V (2483)-Keller,P (2377) Titled Tuesday intern op 14th Jun Late blitz 2022 (1)}) 10... Bd6 {[%emt 0:00:29]} 11. e4 {[%emt 0:00:08]} dxe4 {[%emt 0:00:35]} 12. Nxe4 {[%emt 0:00:07]} Nxe4 {[%emt 0:00:01]} 13. Bxe4 {[%emt 0:00:00]} e5 {[%emt 0:00:00]} 14. Bc3 {[%emt 0:01:06]} exd4 {[%emt 0:02:39]} 15. Qxd4 {[%emt 0:00:12][%csl Gc3][%cal Rd4g7] [#]} Nf6 {[%emt 0:00:09]} 16. Bc2 {[%emt 0:01:44]} Bg4 {[%emt 0:00:06]} 17. Qd3 {[%emt 0:00:20]} Bf4 {[%emt 0:00:12]} 18. Qxd8 {[%emt 0:01:58]} Raxd8 {[%emt 0:00:03]} 19. Rce1 {[%emt 0:00:01]} Bxf3 {[%emt 0:00:19]} 20. gxf3 {[%emt 0:00:03]} Nd7 {[%emt 0:01:21]} 21. Rxe8+ {[%emt 0:00:31]} Rxe8 {[%emt 0:00:01]} 22. Rd1 {[%emt 0:00:00]} Ne5 {[%emt 0:02:48]} 23. Kg2 {[%emt 0:00:03]} Kf8 {[%emt 0:00:24]} (23... Nxc4 $2 24. Rd4 $18) 24. Bb4+ {[%emt 0:00:04] A strong pair of Bishops.} Kg8 {[%emt 0:00:02]} 25. Bc3 {[%emt 0:00:01]} Kf8 {[%emt 0:00:01]} (25... Nxc4 $2 26. Rd4 $18) 26. Bb4+ {[%emt 0:00:56]} Kg8 {[%emt 0:00:02]} 27. Bc3 {[%emt 0:00:01] Weighted Error Value: White=0.07 (flawless) /Black=0.05 (flawless)} 1/2-1/2

[Event "ChessKid Cup Div-III 2023"]
[Site "Online"]
[Date "2023.05.23"]
[Round "53.1"]
[White "Donchenko, Alexander"]
[Black "Santos Ruiz, Miguel"]
[Result "1-0"]
[ECO "D36"]
[WhiteElo "2669"]
[BlackElo "2590"]
[Annotator "TA"]
[PlyCount "45"]
[EventDate "2023.05.21"]
[EventType "k.o."]
[EventCountry "NET"]
[SourceTitle "playchess.com"]
[Source "ChessBase"]
[SourceQuality "1"]
[TimeControl "900+3"]

{[%evp 20,45,18,14,25,9,18,10,18,8,26,3,0,9,6,1,24,4,70,42,169,136,244,197,239,237,204,185]} 1. c4 {[%emt 0:00:09]} e6 {[%emt 0:00:05]} 2. Nc3 {[%emt 0:00:10]} d5 {[%emt 0:00:01]} 3. d4 {[%emt 0:00:01]} Nf6 {[%emt 0:00:01]} 4. cxd5 {[%emt 0:00:02]} exd5 {[%emt 0:00:00]} 5. Bg5 {[%emt 0:00:02]} c6 {[%emt 0:00:02]} 6. e3 {[%emt 0:00:02]} h6 {[%emt 0:00:01]} 7. Bh4 {[%emt 0:00:04]} Be7 {[%emt 0:00:01]} 8. Bd3 {[%emt 0:00:05]} O-O {[%emt 0:00:01]} 9. Nge2 {[%emt 0:00:41]} Re8 {[%emt 0:00:05]} 10. O-O {[%emt 0:00:10]} Nbd7 {[%emt 0:00:01]} 11. Qc2 {[%emt 0:00:13]} a6 {[%emt 0:00:06] D36: Queen's Gambit Declined: Exchange Variation: Main line (5 Bg5 c6 6 Qc2).} 12. Bg3 $5 {[%emt 0:00:10][%cal Bh4g3,Bg3e5,Be5c3,Bc3d4,Bd4c5][%mdl 4] [#] Exploring less charted territory.} b5 $146 {[%emt 0:00:03]} ({Predecessor:} 12... Nh5 13. Nxd5 Nxg3 14. Nxe7+ Qxe7 15. Nxg3 Nf6 16. Rfe1 Be6 17. a3 Rad8 18. Rad1 Kh8 {0-1 Kieffer,J-Schmidt,H Oberbayern-ch 1994 (2)}) 13. Rad1 {[%emt 0:00:49]} Bb7 {[%emt 0:00:10] The position is equal.} 14. h3 {[%emt 0:00:18]} Qb6 {[%emt 0:00:06]} 15. Rfe1 {[%emt 0:00:50]} c5 {[%emt 0:00:22]} 16. dxc5 {[%emt 0:00:06]} Nxc5 {[%emt 0:00:00]} 17. Be5 {[%emt 0:01:28]} Nfe4 {[%emt 0:00:53]} 18. Nf4 {[%emt 0:00:25]} (18. Bd4 {looks sharper.} Qd6 19. Bxg7 Nxf2 20. Kxf2 Bh4+ 21. Kg1) 18... Nxc3 {[%emt 0:05:04]} ({Better is} 18... Bh4 $11 19. Bxe4 dxe4) 19. Bxc3 {[%emt 0:00:52]} ({Much worse is} 19. bxc3 $6 Nxd3 20. Qxd3 Bf8 $11) 19... Red8 {[%emt 0:00:24] Black cannot hold the game after this.} (19... Nxd3 $14 20. Qxd3 Rad8) 20. Bf5 {[%emt 0:00:40][%cal Oc3g7] White is clearly better.} g6 {[%emt 0:03:35] [#]} (20... Qd6 $16 {was necessary.} 21. Bh7+ Kf8) 21. Bd4 $1 $18 {[%emt 0:01:04][%cal Ob2b4] Black must now prevent b4!} Qd6 {[%emt 0:01:06] [#]} 22. Bxg6 {[%emt 0:00:31][%mdl 512]} fxg6 {[%emt 0:00:06]} 23. Bxc5 {[%emt 0:00:01] Weighted Error Value: White=0.11 (very precise) /Black=0.45} 1-0

[Event "ChessKid Cup Div-III 2023"]
[Site "Online"]
[Date "2023.05.23"]
[Round "53.1"]
[White "Bok, Benjamin"]
[Black "Kamsky, Gata"]
[Result "1/2-1/2"]
[ECO "A29"]
[WhiteElo "2607"]
[BlackElo "2665"]
[Annotator "TA"]
[PlyCount "48"]
[EventDate "2023.05.21"]
[EventType "k.o."]
[EventCountry "NET"]
[SourceTitle "playchess.com"]
[Source "ChessBase"]
[SourceQuality "1"]
[TimeControl "900+3"]

{[%evp 13,48,0,7,-30,-26,-22,-20,-31,0,-3,-8,-10,0,0,0,-6,7,7,11,12,23,16,20,27,79,64,75,83,81,11,11,11,11,11,11,11,11]} 1. c4 {[%emt 0:00:13]} e5 {[%emt 0:00:21]} 2. g3 {[%emt 0:00:07]} Nc6 {[%emt 0:00:06]} 3. Bg2 {[%emt 0:00:02]} Nf6 {[%emt 0:00:19]} 4. Nc3 {[%emt 0:00:02]} Bb4 {[%emt 0:00:08]} 5. Nd5 {[%emt 0:00:15]} O-O {[%emt 0:00:31]} 6. Nf3 {[%emt 0:00:55]} Re8 {[%emt 0:00:27]} 7. Nxb4 {[%emt 0:00:37]} Nxb4 {[%emt 0:00:04]} 8. O-O {[%emt 0:00:01] A29: English Opening: Four Knights Variation with 4 g3.} e4 {[%emt 0:00:18]} 9. Nd4 {[%emt 0:01:07]} d5 {[%emt 0:00:16]} 10. Nc2 {[%emt 0:01:29]} a5 {[%emt 0:00:52]} 11. Nxb4 {[%emt 0:03:18]} axb4 {[%emt 0:00:03]} 12. d3 {[%emt 0:00:00] [#] White is weak on the light squares} Bg4 $146 {[%emt 0:01:33] aiming for ...exd3.} ({Predecessor:} 12... Bf5 13. c5 exd3 14. exd3 c6 15. d4 b6 16. Bf4 Ra5 17. Qb3 bxc5 18. dxc5 Rxc5 19. Qxb4 {½-½ Cuevas,A (2262)-Malbran,G (2234) Villa Martelli op-A 21st 2014 (6)}) 13. dxe4 {[%emt 0:00:23]} dxe4 {[%emt 0:00:13]} 14. Qc2 {[%emt 0:00:30]} b3 {[%emt 0:01:56][%mdl 64] [#] Deflection} 15. Qxb3 {[%emt 0:00:03]} Bxe2 {[%emt 0:00:01]} 16. Re1 {[%emt 0:00:00]} Qd3 {[%emt 0:00:03] ...Qxb3 would be deadly.} 17. Bf4 {[%emt 0:01:18]} Qxc4 {[%emt 0:00:11]} 18. Qxb7 {[%emt 0:00:46]} Reb8 {[%emt 0:01:37]} (18... Rxa2 $2 19. Rxa2 (19. Bxc7 Bf3 $11) 19... Qxa2 20. Rxe2 $18) (18... Bd3 $11 {remains equal.}) 19. Qxc7 $16 {[%emt 0:00:47] White is more active.} Qxc7 {[%emt 0:00:03]} 20. Bxc7 {[%emt 0:00:00]} Rxb2 {[%emt 0:00:02] [#]} 21. Be5 {[%emt 0:02:46]} ({White should try} 21. a4 $1 $16 {Threatens to win with Be5.} Bd3 22. f3) 21... Rbxa2 $11 {[%emt 0:00:04] The position is equal.} 22. Rxa2 {[%emt 0:00:01]} Rxa2 {[%emt 0:00:02]} 23. Bxf6 {[%emt 0:00:01][%mdl 64] Remove Defender} gxf6 {[%emt 0:00:01]} 24. Bxe4 {[%emt 0:00:01]} Rd2 {[%emt 0:00:07] Weighted Error Value: White=0.08 (flawless) /Black=0.11 (very precise)} 1/2-1/2

[Event "ChessKid Cup Div-III 2023"]
[Site "Online"]
[Date "2023.05.23"]
[Round "53.1"]
[White "Raja Harshit"]
[Black "Navara, David"]
[Result "1/2-1/2"]
[ECO "C67"]
[WhiteElo "2515"]
[BlackElo "2678"]
[Annotator "TA"]
[PlyCount "59"]
[EventDate "2023.05.21"]
[EventType "k.o."]
[EventCountry "NET"]
[SourceTitle "playchess.com"]
[Source "ChessBase"]
[SourceQuality "1"]
[TimeControl "900+3"]

{[%evp 15,59,23,24,18,28,22,28,16,11,7,18,8,8,27,14,0,16,21,24,22,16,3,15,13,18,9,14,0,2,0,48,0,0,0,0,0,0,0,0,0,0,0,0,0,0,0]} 1. e4 {[%emt 0:00:07]} e5 {[%emt 0:00:05]} 2. Nf3 {[%emt 0:00:02]} Nc6 {[%emt 0:00:01]} 3. Bb5 {[%emt 0:00:03]} Nf6 {[%emt 0:00:01]} 4. O-O {[%emt 0:00:05][%cal Bh1f1,Bf1e1,Be1e5][%mdl 32]} Nxe4 {[%emt 0:00:01]} 5. Re1 {[%emt 0:00:03]} Nd6 {[%emt 0:00:01]} 6. Nxe5 {[%emt 0:00:02]} Be7 {[%emt 0:00:03]} 7. Bf1 {[%emt 0:00:02]} Nxe5 {[%emt 0:00:03]} 8. Rxe5 {[%emt 0:00:01]} O-O {[%emt 0:00:00]} 9. Nc3 {[%emt 0:00:12] C67: Ruy Lopez: Berlin Defence: 4 0-0 Nxe4.} Bf6 {[%emt 0:00:04]} 10. Re1 {[%emt 0:00:06]} Re8 {[%emt 0:00:20]} 11. Nd5 {[%emt 0:01:32] White has an edge.} Rxe1 {[%emt 0:00:12]} 12. Qxe1 {[%emt 0:00:00][%cal Od2d4]} b6 {[%emt 0:00:02]} 13. Nxf6+ {[%emt 0:01:40]} Qxf6 {[%emt 0:00:00]} 14. f3 {[%emt 0:00:02] has lost popularity (14.d3).} Bb7 {[%emt 0:00:10]} 15. Qf2 {[%emt 0:00:03] [#]} h5 $146 {[%emt 0:00:34]} ({Predecessor:} 15... Re8 16. d4 Nf5 17. c3 d6 18. Bd2 h6 19. Bd3 Nh4 20. Re1 Rxe1+ 21. Bxe1 Ng6 {½-½ Yu,Y (2724)-Ni,H (2704) CHN-chT China 2015 (19.6)}) 16. d4 {[%emt 0:00:27]} h4 {[%emt 0:00:11][%cal Oh4h3]} 17. h3 {[%emt 0:00:11]} Re8 {[%emt 0:00:06]} 18. Bd2 {[%emt 0:00:35]} Nf5 {[%emt 0:00:18]} 19. c3 {[%emt 0:00:03]} Ng3 {[%emt 0:00:05]} 20. Bd3 {[%emt 0:00:28]} Kf8 {[%emt 0:01:29]} 21. Re1 {[%emt 0:00:11]} Rxe1+ {[%emt 0:00:09]} 22. Qxe1 {[%emt 0:00:03]} (22. Bxe1 {simplifies} g5 23. Qd2 Nh5 24. Bf2) 22... Bd5 {[%emt 0:00:58]} (22... Bxf3 $11 23. gxf3 Qxf3) 23. b3 {[%emt 0:00:46]} (23. Qe5 $14 {deserves consideration.} Qxe5 24. dxe5) 23... Bxf3 $11 {[%emt 0:00:23][%mdl 64] [#] Demolition. The position is equal.} 24. gxf3 {[%emt 0:03:01]} Qxf3 {[%emt 0:00:00]} 25. Bf1 {[%emt 0:00:01] Black must now prevent Bg2.} (25. Qe3 $5 Qh1+ $8 26. Kf2 $11) 25... Qh1+ {[%emt 0:00:32]} 26. Kf2 {[%emt 0:00:01]} Ne4+ {[%emt 0:00:02]} 27. Ke2 {[%emt 0:00:05] And now Bf4 would win.} Ng3+ {[%emt 0:00:16]} 28. Kf2 {[%emt 0:00:01] [#] Threatens to win with Bg2.} Ne4+ {[%emt 0:00:01]} 29. Ke2 {[%emt 0:01:33]} Ng3+ {[%emt 0:00:02]} 30. Kf2 {[%emt 0:00:02] An uneventful encounter.   Weighted Error Value: White=0.07 (flawless) /Black=0.04 (flawless)} 1/2-1/2